fUSD/lending_fUSD_20251213
["ID","MTS","AMOUNT","RATE_DAILY","PERIOD"]
[398410633,1765618240796,-499.0,0.00016879,2]
[398410634,1765618240805,-371.97949512,0.000169,2]
[398410635,1765618240815,-150.0,0.00016918,2]
[398410636,1765618240824,-150.0,0.00016918,2]
[398410637,1765618240834,-9999.99,0.00016922,2]
[398410638,1765618240844,-6464.92,0.00016922,2]
[398410639,1765618240854,-3674.36,0.00016922,2]
[398410640,1765618240863,-1073.31,0.0001693,2]
[398410641,1765618240873,-499.0,0.00016934,2]
[398410642,1765618240882,-151.0,0.00016942,2]
[398410643,1765618240891,-16354.38632192,0.00016942,2]
[398410644,1765618240901,-9273.51649085,0.00016944,2]
[398410645,1765618240911,-362.943865,0.00016973,2]
[398410646,1765618240922,-500.0,0.00016973,2]
[398410647,1765618240931,-165.05782679,0.00016973,2]
[398410648,1765618240940,-500.0,0.00016973,2]
[398410649,1765618240949,-501.34740605,0.00016973,2]
[398410650,1765618240959,-223.83121583,0.00016973,2]
[398410651,1765618240968,-500.52668444,0.00016973,2]
[398410652,1765618240977,-500.0,0.00016973,2]
[398410653,1765618240987,-500.0,0.00016973,2]
[398410654,1765618240998,-500.0,0.00016973,2]
[398410655,1765618241008,-500.0,0.00016973,2]
[398410656,1765618241018,-500.0,0.00016973,2]
[398410657,1765618241027,-500.0,0.00016973,2]
[398410658,1765618241037,-500.0,0.00016973,2]
[398410659,1765618241046,-500.0,0.00016973,2]
[398410660,1765618241056,-500.0,0.00016973,2]
[398410661,1765618241066,-166.96872211,0.00016973,2]
[398410662,1765618241076,-500.0,0.00016973,2]
[398410663,1765618241085,-500.0,0.00016973,2]
[398410664,1765618241094,-376.6677597,0.00016973,2]
[398410665,1765618241103,-482.77559391,0.00016973,2]
[398410666,1765618241113,-500.0,0.00016973,2]
[398410667,1765618241122,-500.0,0.00016973,2]
[398410668,1765618241131,-500.0,0.00016973,2]
[398410669,1765618241141,-500.0,0.00016973,2]
[398410670,1765618241151,-500.0,0.00016973,2]
[398410671,1765618241160,-500.6273257,0.00016973,2]
[398410672,1765618241169,-500.40431242,0.00016973,2]
[398410673,1765618241179,-201.4427787,0.00016973,2]
[398410674,1765618241188,-500.0,0.00016973,2]
[398410675,1765618241198,-168.44035917,0.00016973,2]
[398410676,1765618241207,-500.26433138,0.00016973,2]
[398410677,1765618241216,-276.1948738,0.00016973,2]
[398410678,1765618241226,-165.64214933,0.00016973,2]
[398410679,1765618241235,-500.0,0.00016973,2]
[398410680,1765618241244,-500.69569811,0.00016973,2]
[398410681,1765618241254,-500.60353783,0.00016973,2]
[398410682,1765618241263,-500.0,0.00016973,2]
[398410683,1765618241273,-500.0,0.00016973,2]
[398410684,1765618241282,-161.89218432,0.00016973,2]
[398410685,1765618241291,-654.11,0.00016986,2]
[398410686,1765618241300,-499.0,0.00016989,2]
[398410687,1765618241310,-2184747.25294578,0.00017,2]
[398410688,1765618241534,-525.16036174,0.000161,2]
[398410689,1765618241545,-1353.83963826,0.000161,2]
[398410690,1765618241555,-1243.0,0.00016132,2]
[398410691,1765618241564,-197.887984,0.00016942,2]
[398410692,1765618241574,-2445185.35515042,0.00017,2]
[398410693,1765618241583,-269.906202,0.00017,2]
[398410694,1765618241593,-499.0,0.00017044,2]
[398410695,1765618241602,-499.0,0.00017099,2]
[398410696,1765618241611,-420.0,0.00017107,2]
[398410697,1765618241622,-420.0,0.00017107,2]
[398410698,1765618241633,-150.0,0.00017149,2]
[398410699,1765618241643,-499.0,0.00017154,2]
[398410700,1765618241653,-16354.38632192,0.00017182,2]
[398410701,1765618241662,-1680.0,0.00017193,2]
[398410702,1765618241671,-1073.31,0.00017204,2]
[398410703,1765618241680,-499.0,0.00017209,2]
[398410704,1765618241690,-654.11,0.0001726,2]
[398410705,1765618241699,-499.0,0.00017264,2]
[398410706,1765618241708,-252.193,0.00017295,2]
[398410707,1765618241717,-1261.0,0.00017295,2]
[398410708,1765618241726,-1196.0,0.00017295,2]
[398410709,1765618241735,-1451.105,0.00017295,2]
[398410710,1765618241744,-2426.0,0.00017295,2]
[398410711,1765618241754,-6520.0,0.00017295,2]
[398410712,1765618241763,-300.0,0.00017316,2]
[398410713,1765618241771,-300.0,0.00017316,2]
[398410714,1765618241780,-195.0,0.00017316,2]
[398410715,1765618241790,-250.0,0.00017316,2]
[398410716,1765618241799,-300.0,0.00017316,2]
[398410717,1765618241808,-300.0,0.00017316,2]
[398410718,1765618241817,-369.71037839,0.00017316,2]
[398410719,1765618241826,-499.0,0.00017319,2]
[398410720,1765618241835,-595.37131296,0.00017372,2]
[398410721,1765618241844,-499.0,0.00017374,2]
[398410722,1765618241854,-371.9794951,0.000174,2]
[398410723,1765618241868,-16354.38632192,0.00017421,2]
[398410724,1765618241877,-162.11,0.0001747,2]
[398410725,1765618241891,-1073.31,0.00017478,2]
[398410726,1765618241901,-1000.0,0.00017521,2]
[398410727,1765618241910,-1000.0,0.00017521,2]
[398410728,1765618241920,-1000.0,0.00017521,2]
[398410729,1765618241930,-1106.00059495,0.00017521,2]
[398410730,1765618241939,-1000.0,0.00017521,2]
[398410731,1765618241949,-1000.0,0.00017521,2]
[398410732,1765618241958,-3640.0,0.00017533,2]
[398410733,1765618241968,-500.0,0.00017534,2]
[398410734,1765618241978,-150.0,0.00017534,2]
[398410735,1765618241987,-150.0,0.00017534,2]
[398410736,1765618241996,-150.0,0.00017534,2]
[398410737,1765618242006,-150.0,0.00017534,2]
[398410738,1765618242015,-150.0,0.00017534,2]
[398410739,1765618242025,-150.0,0.00017534,2]
[398410740,1765618242035,-150.0,0.00017534,2]
[398410741,1765618242044,-150.0,0.00017534,2]
[398410742,1765618242054,-500.0,0.00017534,2]
[398410743,1765618242063,-150.0,0.00017534,2]
[398410744,1765618242073,-150.0,0.00017534,2]
[398410745,1765618242086,-156.45165699,0.00017534,2]
[398410746,1765618242095,-500.0,0.00017534,2]
[398410747,1765618242105,-152.6264382,0.00017534,2]
[398410748,1765618242114,-150.0,0.00017534,2]
[398410749,1765618242124,-150.0,0.00017534,2]
[398410750,1765618242134,-150.0,0.00017534,2]
[398410751,1765618242143,-268.22068745,0.00017534,2]
[398410752,1765618242153,-150.0,0.00017534,2]
[398410753,1765618242162,-155.20312827,0.00017534,2]
[398410754,1765618242172,-654.11,0.00017534,2]
[398410755,1765618242181,-223.28073538,0.00017571,2]
[398410756,1765618242191,-500.0,0.00017623,2]
[398410757,1765618242201,-1124.86822543,0.00017623,2]
[398410758,1765618242211,-1091.44080292,0.00017623,2]
[398410759,1765618242221,-1000.08310818,0.00017623,2]
[398410760,1765618242230,-1120.84630417,0.00017623,2]
[398410761,1765618242241,-1028.60976602,0.00017623,2]
[398410762,1765618242250,-1081.56056509,0.00017623,2]
[398410763,1765618242259,-1068.59720353,0.00017623,2]
[398410764,1765618242268,-1101.42665254,0.00017623,2]
[398410765,1765618242282,-3233.19850472,0.0001764,2]
[398410766,1765618242291,-16354.38632192,0.00017661,2]
[398410767,1765618242301,-500.0,0.00017671,2]
[398410769,1765618242311,-263.1975105,0.00017671,2]
[398410770,1765618242320,-153.18226241,0.00017671,2]
[398410771,1765618242330,-152.31948268,0.00017671,2]
[398410772,1765618242340,-150.0,0.00017671,2]
[398410773,1765618242350,-150.0,0.00017671,2]
[398410774,1765618242359,-150.0,0.00017671,2]
[398410776,1765618242369,-150.0,0.00017671,2]
[398410778,1765618242379,-500.0,0.00017671,2]
[398410779,1765618242389,-500.0,0.00017671,2]
[398410780,1765618242400,-150.0,0.00017671,2]
[398410781,1765618242410,-150.0,0.00017671,2]
[398410782,1765618242421,-150.0,0.00017671,2]
[398410783,1765618242432,-200.88620983,0.00017671,2]
[398410784,1765618242736,-1010.0,0.000177,2]
[398410785,1765618242776,-1073.34336975,0.00017752,2]
[398410786,1765618242786,-300.0,0.00017752,2]
[398410787,1765618242796,-1000.0,0.000178,2]
[398410788,1765618242807,-402.55406266,0.00017808,2]
[398410789,1765618242816,-150.0,0.00017808,2]
[398410790,1765618242826,-200.0,0.00017808,2]
[398410791,1765618242835,-500.0,0.00017808,2]
[398410792,1765618242845,-500.0,0.00017808,2]
[398410793,1765618242854,-150.0,0.00017808,2]
[398410794,1765618242868,-150.0,0.00017808,2]
[398410795,1765618242878,-150.0,0.00017808,2]
[398410796,1765618242888,-654.11,0.00017808,2]
[398410797,1765618242897,-159.50716856,0.00017808,2]
[398410798,1765618242908,-150.0,0.00017808,2]
[398410799,1765618242919,-150.0,0.00017808,2]
[398410800,1765618242929,-157.43451246,0.00017808,2]
[398410801,1765618242941,-165.51213001,0.00017808,2]
[398410802,1765618242952,-151.0,0.00017808,2]
[398410803,1765618242972,-151.0,0.00017808,2]
[398410804,1765618242983,-151.0,0.00017808,2]
[398410805,1765618242993,-151.0,0.00017808,2]
[398410806,1765618243003,-151.0,0.00017808,2]
[398410807,1765618243014,-170.802512,0.00017808,2]
[398410808,1765618243028,-151.0,0.00017808,2]
[398410809,1765618243038,-151.0,0.00017808,2]
[398410810,1765618243048,-151.0,0.00017808,2]
[398410811,1765618243063,-151.0,0.00017808,2]
[398410812,1765618243073,-151.0,0.00017808,2]
[398410813,1765618243083,-151.0,0.00017808,2]
[398410814,1765618243094,-151.0,0.00017808,2]
[398410815,1765618243104,-151.0,0.00017808,2]
[398410816,1765618243113,-151.0,0.00017808,2]
[398410817,1765618243124,-154.832108,0.00017808,2]
[398410818,1765618243133,-166.24735,0.00017808,2]
[398410819,1765618243144,-151.0,0.00017808,2]
[398410820,1765618243153,-166.24735,0.00017808,2]
[398410821,1765618243163,-288.284232,0.00017808,2]
[398410822,1765618243173,-151.0,0.00017808,2]
[398410824,1765618243183,-166.24735,0.00017808,2]
[398410826,1765618243193,-288.284232,0.00017808,2]
[398410827,1765618243204,-151.0,0.00017808,2]
[398410828,1765618243214,-166.24735,0.00017808,2]
[398410829,1765618243225,-194.438164,0.00017808,2]
[398410830,1765618243236,-288.284232,0.00017808,2]
[398410831,1765618243246,-151.0,0.00017808,2]
[398410832,1765618243257,-288.284232,0.00017808,2]
[398410833,1765618243267,-194.438164,0.00017808,2]
[398410834,1765618243277,-151.0,0.00017808,2]
[398410835,1765618243287,-567.483536,0.00017808,2]
[398410836,1765618243296,-194.438164,0.00017808,2]
[398410837,1765618243306,-567.483536,0.00017808,2]
[398410838,1765618243316,-194.438164,0.00017808,2]
[398410839,1765618243328,-567.483536,0.00017808,2]
[398410840,1765618243338,-151.0,0.00017808,2]
[398410841,1765618243348,-567.483536,0.00017808,2]
[398410842,1765618243359,-151.0,0.00017808,2]
[398410843,1765618243369,-151.0,0.00017808,2]
[398410844,1765618243380,-186.105703,0.00017808,2]
[398410845,1765618243390,-151.0,0.00017808,2]
[398410846,1765618243400,-155.202711,0.00017808,2]
[398410847,1765618243410,-151.0,0.00017808,2]
[398410848,1765618243420,-482.984979,0.00017808,2]
[398410849,1765618243431,-482.984979,0.00017808,2]
[398410850,1765618243442,-229.506462,0.00017808,2]
[398410851,1765618243452,-482.984979,0.00017808,2]
[398410852,1765618243462,-229.506462,0.00017808,2]
[398410853,1765618243472,-151.0,0.00017808,2]
[398410854,1765618243482,-482.984979,0.00017808,2]
[398410855,1765618243492,-229.506462,0.00017808,2]
[398410856,1765618243503,-151.0,0.00017808,2]
[398410857,1765618243512,-229.506462,0.00017808,2]
[398410858,1765618243522,-151.0,0.00017808,2]
[398410859,1765618243531,-1098.577686,0.00017808,2]
[398410860,1765618243541,-1098.577686,0.00017808,2]
[398410861,1765618243551,-151.0,0.00017808,2]
[398410862,1765618243562,-151.0,0.00017808,2]
[398410863,1765618243571,-151.0,0.00017808,2]
[398410864,1765618243582,-1098.577686,0.00017808,2]
[398410865,1765618243591,-1307.199992,0.00017808,2]
[398410866,1765618243600,-151.0,0.00017808,2]
[398410867,1765618243610,-151.0,0.00017808,2]
[398410868,1765618243620,-1098.577686,0.00017808,2]
[398410869,1765618243630,-1307.199992,0.00017808,2]
[398410870,1765618243639,-3805.043253,0.00017808,2]
[398410871,1765618243648,-151.0,0.00017808,2]
[398410872,1765618243659,-151.0,0.00017808,2]
[398410873,1765618243668,-151.0,0.00017808,2]
[398410874,1765618243678,-1307.199992,0.00017808,2]
[398410875,1765618243687,-3805.043253,0.00017808,2]
[398410876,1765618243696,-151.0,0.00017808,2]
[398410877,1765618243706,-1307.199992,0.00017808,2]
[398410878,1765618243715,-3805.043253,0.00017808,2]
[398410879,1765618243725,-3805.043253,0.00017808,2]
[398410880,1765618243734,-151.0,0.00017808,2]
[398410881,1765618243743,-166.131492,0.00017808,2]
[398410882,1765618243753,-151.138051,0.00017808,2]
[398410883,1765618243762,-166.131492,0.00017808,2]
[398410884,1765618243771,-151.0,0.00017808,2]
[398410885,1765618243781,-151.138051,0.00017808,2]
[398410886,1765618243790,-151.0,0.00017808,2]
[398410887,1765618243800,-183.650922,0.00017808,2]
[398410888,1765618243810,-166.131492,0.00017808,2]
[398410889,1765618243819,-701.632631,0.00017808,2]
[398410890,1765618243828,-151.0,0.00017808,2]
[398410891,1765618243837,-279.856822,0.00017808,2]
[398410892,1765618243847,-151.0,0.00017808,2]
[398410893,1765618243856,-151.0,0.00017808,2]
[398410894,1765618243866,-151.138051,0.00017808,2]
[398410895,1765618243875,-701.632631,0.00017808,2]
[398410896,1765618243884,-183.650922,0.00017808,2]
[398410897,1765618243893,-151.0,0.00017808,2]
[398410898,1765618243903,-518.958597,0.00017808,2]
[398410899,1765618243912,-279.856822,0.00017808,2]
[398410900,1765618243921,-151.0,0.00017808,2]
[398410901,1765618243933,-151.138051,0.00017808,2]
[398410902,1765618243942,-183.650922,0.00017808,2]
[398410903,1765618243951,-701.632631,0.00017808,2]
[398410904,1765618243961,-279.856822,0.00017808,2]
[398410905,1765618243970,-518.958597,0.00017808,2]
[398410906,1765618243980,-151.0,0.00017808,2]
[398410907,1765618243990,-701.632631,0.00017808,2]
[398410908,1765618244000,-183.650922,0.00017808,2]
[398410909,1765618244009,-279.856822,0.00017808,2]
[398410910,1765618244019,-518.958597,0.00017808,2]
[398410911,1765618244029,-151.0,0.00017808,2]
[398410912,1765618244039,-518.958597,0.00017808,2]
[398410913,1765618244048,-151.0,0.00017808,2]
[398410914,1765618244058,-151.0,0.00017808,2]
[398410915,1765618244067,-166.131492,0.00017808,2]
[398410916,1765618244077,-151.0,0.00017808,2]
[398410917,1765618244087,-151.0,0.00017808,2]
[398410918,1765618244097,-151.0,0.00017808,2]
[398410919,1765618244107,-151.0,0.00017808,2]
[398410920,1765618244116,-151.0,0.00017808,2]
[398410921,1765618244126,-151.0,0.00017808,2]
[398410922,1765618244136,-151.0,0.00017808,2]
[398410923,1765618244145,-151.0,0.00017808,2]
[398410924,1765618244155,-151.0,0.00017808,2]
[398410925,1765618244164,-151.0,0.00017808,2]
[398410926,1765618244174,-893.934501,0.00017808,2]
[398410927,1765618244183,-893.934501,0.00017808,2]
[398410928,1765618244192,-893.934501,0.00017808,2]
[398410929,1765618244202,-893.934501,0.00017808,2]
[398410930,1765618244211,-151.0,0.00017808,2]
[398410931,1765618244220,-151.0,0.00017808,2]
[398410932,1765618244230,-151.0,0.00017808,2]
[398410933,1765618244239,-310.51986,0.00017808,2]
[398410934,1765618244249,-151.0,0.00017808,2]
[398410935,1765618244259,-481.241282,0.00017808,2]
[398410936,1765618244268,-310.51986,0.00017808,2]
[398410937,1765618244277,-293.504653,0.00017808,2]
[398410938,1765618244287,-310.51986,0.00017808,2]
[398410939,1765618244296,-481.241282,0.00017808,2]
[398410940,1765618244306,-151.0,0.00017808,2]
[398410941,1765618244315,-203.153937,0.00017808,2]
[398410942,1765618244324,-293.504653,0.00017808,2]
[398410943,1765618244333,-310.51986,0.00017808,2]
[398410944,1765618244343,-481.241282,0.00017808,2]
[398410945,1765618244352,-151.0,0.00017808,2]
[398410946,1765618244362,-203.153937,0.00017808,2]
[398410947,1765618244371,-151.0,0.00017808,2]
[398410948,1765618244380,-293.504653,0.00017808,2]
[398410949,1765618244390,-481.241282,0.00017808,2]
[398410950,1765618244399,-203.153937,0.00017808,2]
[398410951,1765618244409,-151.0,0.00017808,2]
[398410952,1765618244418,-293.504653,0.00017808,2]
[398410953,1765618244427,-203.153937,0.00017808,2]
[398410954,1765618244437,-151.0,0.00017808,2]
[398410955,1765618244446,-1073.732001,0.00017808,2]
[398410956,1765618244456,-1073.732001,0.00017808,2]
[398410957,1765618244465,-482.867898,0.00017808,2]
[398410958,1765618244475,-482.867898,0.00017808,2]
[398410959,1765618244484,-1073.732001,0.00017808,2]
[398410960,1765618244494,-153.637331,0.00017808,2]
[398410961,1765618244503,-437.806932,0.00017808,2]
[398410962,1765618244513,-1073.732001,0.00017808,2]
[398410963,1765618244523,-437.806932,0.00017808,2]
[398410964,1765618244532,-482.867898,0.00017808,2]
[398410965,1765618244541,-482.867898,0.00017808,2]
[398410966,1765618244551,-1073.732001,0.00017808,2]
[398410967,1765618244561,-1969.955772,0.00017808,2]
[398410968,1765618244571,-1073.732001,0.00017808,2]
[398410969,1765618244580,-151.0,0.00017808,2]
[398410970,1765618244590,-1969.955772,0.00017808,2]
[398410971,1765618244599,-437.806932,0.00017808,2]
[398410972,1765618244609,-482.867898,0.00017808,2]
[398410973,1765618244618,-151.0,0.00017808,2]
[398410974,1765618244628,-437.806932,0.00017808,2]
[398410975,1765618244638,-797.027008,0.00017808,2]
[398410976,1765618244648,-482.867898,0.00017808,2]
[398410977,1765618244658,-797.027008,0.00017808,2]
[398410978,1765618244668,-1073.732001,0.00017808,2]
[398410979,1765618244678,-529.242117,0.00017808,2]
[398410980,1765618244687,-1969.955772,0.00017808,2]
[398410981,1765618244697,-1073.732001,0.00017808,2]
[398410982,1765618244707,-529.242117,0.00017808,2]
[398410983,1765618244716,-1969.955772,0.00017808,2]
[398410984,1765618244726,-355.503979,0.00017808,2]
[398410985,1765618244736,-437.806932,0.00017808,2]
[398410986,1765618244747,-797.027008,0.00017808,2]
[398410987,1765618244756,-482.867898,0.00017808,2]
[398410988,1765618244766,-437.806932,0.00017808,2]
[398410989,1765618244775,-355.503979,0.00017808,2]
[398410990,1765618244785,-797.027008,0.00017808,2]
[398410991,1765618244794,-151.0,0.00017808,2]
[398410992,1765618244804,-482.867898,0.00017808,2]
[398410993,1765618244813,-155.975564,0.00017808,2]
[398410994,1765618244823,-1969.955772,0.00017808,2]
[398410995,1765618244832,-151.0,0.00017808,2]
[398410996,1765618244841,-529.242117,0.00017808,2]
[398410997,1765618244850,-1969.955772,0.00017808,2]
[398410998,1765618244863,-529.242117,0.00017808,2]
[398410999,1765618244872,-151.0,0.00017808,2]
[398411000,1765618244881,-437.806932,0.00017808,2]
[398411001,1765618244890,-355.503979,0.00017808,2]
[398411002,1765618244899,-437.806932,0.00017808,2]
[398411003,1765618244909,-355.503979,0.00017808,2]
[398411004,1765618244919,-529.242117,0.00017808,2]
[398411005,1765618244928,-1969.955772,0.00017808,2]
[398411006,1765618244938,-529.242117,0.00017808,2]
[398411007,1765618244947,-1969.955772,0.00017808,2]
[398411008,1765618244957,-355.503979,0.00017808,2]
[398411009,1765618244966,-355.503979,0.00017808,2]
[398411010,1765618244975,-157.376131,0.00017808,2]
[398411011,1765618244985,-529.242117,0.00017808,2]
[398411012,1765618244994,-355.503979,0.00017808,2]
[398411013,1765618245004,-355.503979,0.00017808,2]
[398411014,1765618245013,-529.242117,0.00017808,2]
[398411015,1765618245022,-151.0,0.00017808,2]
[398411016,1765618245031,-797.027008,0.00017808,2]
[398411017,1765618245041,-151.0,0.00017808,2]
[398411018,1765618245051,-797.027008,0.00017808,2]
[398411019,1765618245061,-151.0,0.00017808,2]
[398411020,1765618245070,-151.0,0.00017808,2]
[398411021,1765618245079,-151.0,0.00017808,2]
[398411022,1765618245088,-151.0,0.00017808,2]
[398411023,1765618245098,-151.0,0.00017808,2]
[398411024,1765618245107,-797.027008,0.00017808,2]
[398411025,1765618245117,-151.0,0.00017808,2]
[398411026,1765618245126,-797.027008,0.00017808,2]
[398411027,1765618245135,-151.0,0.00017808,2]
[398411028,1765618245268,-151.0,0.00017808,2]
[398411029,1765618245277,-151.0,0.00017808,2]
[398411030,1765618245287,-151.0,0.00017808,2]
[398411031,1765618245298,-151.0,0.00017808,2]
[398411032,1765618245311,-151.0,0.00017808,2]
[398411033,1765618245320,-300.0,0.00017809,2]
[398411034,1765618245329,-196.0,0.00017822,2]
[398411035,1765618245339,-104947.77081142,0.0001783,2]
[398411036,1765618245348,-196.0,0.00017833,2]
[398411039,1765618245358,-196.0,0.00017855,2]
[398411041,1765618245367,-1038.88883587,0.00017876,2]
[398411043,1765618245375,-500.0,0.00017882,2]
[398411044,1765618245384,-500.0,0.00017882,2]
[398411045,1765618245394,-1592.1424,0.00017883,2]
[398411046,1765618245404,-184.52566928,0.000179,2]
[398411047,1765618245413,-1000.0,0.000179,2]
[398411048,1765618245422,-16354.38632192,0.000179,2]
[398411049,1765618245431,-371.9794951,0.000179,2]
[398411050,1765618245440,-1631.73233,0.0001791,2]
[398411051,1765618245449,-532.40098148,0.0001792,2]
[398411052,1765618245458,-52529.96735652,0.0001794,2]
[398411053,1765618245467,-150.0,0.00017945,2]
[398411054,1765618245476,-500.0,0.00017945,2]
[398411055,1765618245485,-200.0,0.00017945,2]
[398411056,1765618245495,-150.0,0.00017945,2]
[398411057,1765618245504,-213.15981732,0.00017945,2]
[398411058,1765618245514,-500.0,0.00017973,2]
[398411059,1765618245522,-500.0,0.00017973,2]
[398411060,1765618245532,-500.0,0.00017973,2]
[398411061,1765618245540,-500.0,0.00017973,2]
[398411062,1765618245550,-500.0,0.00017973,2]
[398411063,1765618245559,-500.0,0.00017973,2]
[398411064,1765618245568,-567.32208643,0.00017973,2]
[398411065,1765618245576,-500.0,0.00017973,2]
[398411066,1765618245585,-500.0,0.00017973,2]
[398411067,1765618245595,-500.0,0.00017973,2]
[398411068,1765618245604,-500.0,0.00017973,2]
[398411069,1765618245613,-566.62084446,0.00017973,2]
[398411070,1765618245622,-500.0,0.00017973,2]
[398411071,1765618245631,-500.0,0.00017973,2]
[398411072,1765618245641,-500.0,0.00017973,2]
[398411073,1765618245650,-165.28083173,0.00017973,2]
[398411074,1765618245659,-500.0,0.00017973,2]
[398411075,1765618245668,-500.0,0.00017973,2]
[398411076,1765618245676,-500.0,0.00017973,2]
[398411077,1765618245685,-500.0,0.00017973,2]
[398411078,1765618245694,-500.0,0.00017973,2]
[398411079,1765618245703,-500.0,0.00017973,2]
[398411080,1765618245713,-500.0,0.00017973,2]
[398411081,1765618245722,-330.25327919,0.00017973,2]
[398411082,1765618245732,-500.0,0.00017973,2]
[398411083,1765618245741,-500.0,0.00017973,2]
[398411084,1765618245750,-500.0,0.00017973,2]
[398411085,1765618245759,-500.0,0.00017973,2]
[398411086,1765618245768,-500.0,0.00017973,2]
[398411087,1765618245777,-500.0,0.00017973,2]
[398411088,1765618245786,-500.0,0.00017973,2]
[398411089,1765618245795,-500.0,0.00017973,2]
[398411090,1765618245804,-500.0,0.00017994,2]
[398411091,1765618245814,-500.0,0.00017994,2]
[398411092,1765618245823,-500.0,0.00017994,2]
[398411093,1765618245832,-516.74047021,0.00017994,2]
[398411094,1765618245841,-2931.732233,0.00017994,2]
[398411095,1765618245850,-500.0,0.00017994,2]
[398411096,1765618245861,-500.0,0.00017994,2]
[398411097,1765618245872,-3468.4320831,0.00017995,2]
[398411098,1765618245881,-333302.6812627,0.00017995,2]
[398411099,1765618245891,-887.6603619,0.00017995,2]
[398411100,1765618245901,-151.0,0.00017995,2]
[398411101,1765618245911,-151.0,0.00017995,2]
[398411102,1765618245920,-151.0,0.00017995,2]
[398411103,1765618245929,-151.0,0.00017995,2]
[398411104,1765618245940,-151.662795,0.00017995,2]
[398411105,1765618245949,-151.0,0.00017995,2]
[398411106,1765618245958,-151.0,0.00017995,2]
[398411107,1765618245967,-151.0,0.00017995,2]
[398411108,1765618245976,-151.0,0.00017995,2]
[398411109,1765618245985,-151.0,0.00017995,2]
[398411110,1765618245994,-151.0,0.00017995,2]
[398411111,1765618246004,-151.0,0.00017995,2]
[398411112,1765618246013,-259.45235163,0.00017995,2]
[398411113,1765618246022,-151.0,0.00017995,2]
[398411114,1765618246032,-151.0,0.00017995,2]
[398411115,1765618246041,-166.24735,0.00017995,2]
[398411116,1765618246050,-166.24735,0.00017995,2]
[398411117,1765618246059,-288.284232,0.00017995,2]
[398411118,1765618246068,-151.0,0.00017995,2]
[398411119,1765618246077,-166.24735,0.00017995,2]
[398411120,1765618246086,-288.284232,0.00017995,2]
[398411121,1765618246096,-151.0,0.00017995,2]
[398411122,1765618246105,-166.24735,0.00017995,2]
[398411123,1765618246115,-194.438164,0.00017995,2]
[398411124,1765618246124,-288.284232,0.00017995,2]
[398411125,1765618246133,-151.0,0.00017995,2]
[398411126,1765618246143,-288.284232,0.00017995,2]
[398411127,1765618246152,-194.438164,0.00017995,2]
[398411128,1765618246161,-151.0,0.00017995,2]
[398411129,1765618246171,-567.483536,0.00017995,2]
[398411130,1765618246181,-194.438164,0.00017995,2]
[398411131,1765618246190,-567.483536,0.00017995,2]
[398411132,1765618246199,-194.438164,0.00017995,2]
[398411133,1765618246209,-567.483536,0.00017995,2]
[398411134,1765618246218,-151.0,0.00017995,2]
[398411135,1765618246227,-567.483536,0.00017995,2]
[398411136,1765618246237,-151.0,0.00017995,2]
[398411137,1765618246246,-151.0,0.00017995,2]
[398411138,1765618246256,-151.0,0.00017995,2]
[398411139,1765618246265,-482.984979,0.00017995,2]
[398411141,1765618246274,-482.984979,0.00017995,2]
[398411142,1765618246283,-229.506462,0.00017995,2]